bitfinex-derivatives/quotes_ETHF0:USTF0_20250520
["timestamp","ask_amount","ask_price","bid_price","bid_amount"]
[1747767353326,0.9037252,2455.7,2455.6,17.95262]
[1747767353723,1.7179052,2455.7,2455.6,17.95262]
[1747767353927,3.0452052,2455.7,2455.6,15.744]
[1747767354937,2.2310252,2455.7,2455.6,16.55822]
[1747767355144,3.2078,2456.1,2455.6,17.78012]
[1747767355428,1.3194,2455.9,2455.8,0.81415]
[1747767355829,0.9037252,2455.9,2455.8,0.81415]
[1747767356136,4.02185,2456.1,2456.0,0.81408]
[1747767356432,0.81411,2456.0,2455.9,0.81409]
[1747767356733,3.0372352,2456.0,2455.9,0.81409]
[1747767356936,0.9037252,2456.0,2455.9,0.81409]
[1747767357234,3.2078,2456.1,2456.0,0.81408]
[1747767357626,4.1115252,2456.1,2456.0,0.81408]
[1747767358030,3.2078,2456.1,2456.0,0.81408]
[1747767358232,4.1115252,2456.1,2456.0,0.81408]
[1747767360134,4.1115252,2456.1,2455.5,0.00610451]
[1747767360135,0.81422,2455.6,2455.5,0.00610451]
[1747767360435,4.9257452,2455.6,2455.5,0.00610451]
[1747767360837,4.1115252,2455.6,2455.5,0.82035451]
[1747767361735,0.81438,2455.1,2455.0,0.81441]
[1747767361934,1.7181052,2455.1,2454.8,17.0192]
[1747767362134,0.9037252,2454.9,2454.7,0.33661849]
[1747767362336,1.7182052,2454.8,2454.7,0.33661849]
[1747767362543,0.9037252,2454.8,2454.7,3.18799348]
[1747767362742,3.21390451,2455.0,2454.7,2.37348348]
[1747767362935,0.9037252,2454.8,2454.7,1.15112849]
[1747767363345,3.21390451,2455.0,2454.9,0.81445]
[1747767363543,5.37942451,2455.0,2454.8,0.81447]
[1747767363735,0.9037252,2454.8,2454.7,1.15109849]
[1747767364044,0.9037252,2454.8,2454.7,0.81451]
[1747767364233,3.21390451,2455.0,2454.9,0.81445]
[1747767364643,0.90982971,2455.0,2454.9,5.81445]
[1747767364842,0.00610451,2455.0,2454.9,0.81445]
[1747767365342,0.90982971,2455.0,2454.9,2.10605]
[1747767367143,0.00610451,2455.0,2454.9,2.10605]
[1747767367336,0.90982971,2455.0,2454.9,2.10605]
[1747767367536,0.00610451,2455.0,2454.9,2.10605]
[1747767367840,0.90982971,2455.0,2454.9,2.10605]
[1747767368047,0.00610451,2455.0,2454.9,2.10605]
[1747767368247,3.2078,2455.4,2455.3,0.81432]
[1747767368642,3.29262971,2455.4,2455.3,0.81432]
[1747767370150,2.03625,2454.8,2453.2,1.17872939]
[1747767370339,4.02266,2453.7,2453.2,1.17872939]
[1747767370648,0.81488,2453.6,2453.2,1.17872939]
[1747767370849,3.2078,2453.7,2453.2,1.17872939]
[1747767371041,1.4203,2453.5,2453.2,16.88072939]
[1747767371242,3.21390451,2453.7,2453.2,16.8868339]
[1747767371747,4.02277,2453.4,2453.2,1.1848339]
[1747767372050,0.81508,2453.0,2452.9,1.05070983]
[1747767372240,4.02288,2453.0,2452.9,1.05070983]
[1747767372440,0.8152,2452.7,2452.3,3.2078]
[1747767372641,3.2078,2452.7,2452.2,3.22077278]
[1747767372838,3.2078,2452.4,2452.2,3.22077278]
[1747767373339,5.2467,2452.4,2452.2,3.22077278]
[1747767373544,6.062,2452.4,2452.2,4.65017278]
[1747767373743,5.2467,2452.4,2452.2,1.4294]
[1747767374050,2.0389,2452.4,2452.1,0.00610451]
[1747767374242,4.432,2452.6,2452.1,0.00610451]
[1747767374446,1.3757,2452.5,2452.1,0.00610451]
[1747767374645,2.19095,2452.5,2452.1,0.00610451]
[1747767374846,0.81528,2452.4,2452.1,0.00610451]
[1747767375046,3.4146,2452.5,2452.1,0.00610451]
[1747767375551,0.81534,2452.2,2452.1,0.00610451]
[1747767375849,3.2078,2452.2,2452.1,0.00610451]
[1747767376043,0.00611708,2452.4,2452.1,2.04512951]
[1747767376245,0.00611708,2452.4,2450.6,3.22077278]
[1747767376246,3.2078,2452.2,2450.6,3.22077278]
[1747767376446,5.56230284,2450.7,2448.1,0.02290804]
[1747767376648,3.2078,2448.2,2445.6,3.2078]
[1747767376854,3.2078,2445.7,2445.6,3.2078]
[1747767377046,3.2078,2446.4,2445.5,3.2078]
[1747767377241,13.75,2447.3,2445.6,22.16737818]
[1747767377449,4.02507,2446.5,2445.9,14.00357818]
[1747767377649,3.2078,2446.2,2446.0,5.37485657]
[1747767377943,3.2078,2446.2,2446.1,14.00357818]
[1747767378145,3.2078,2446.2,2446.1,8.1638]
[1747767378354,5.25183001,2446.2,2446.0,5.37485657]
[1747767378556,3.2078,2446.6,2446.1,23.47677818]
[1747767378849,3.2078,2446.2,2446.0,8.58265657]
[1747767379046,3.2078,2446.2,2446.0,5.37485657]
[1747767379242,3.2078,2446.2,2446.1,14.00357818]
[1747767379446,2.04381,2445.7,2443.2,0.32496412]
[1747767379655,3.2078,2444.8,2444.4,0.81793]
[1747767379852,3.2078,2444.6,2443.6,27.035]
[1747767380046,3.2078,2444.6,2443.9,8.1638]
[1747767380245,3.2078,2445.0,2444.5,8.1638]
[1747767380445,1.17314582,2446.4,2444.9,3.2078]
[1747767380756,1.17314582,2446.4,2446.3,8.1638]
[1747767380961,3.2078,2447.3,2446.6,8.1638]
[1747767381257,3.2078,2448.1,2447.0,8.1638]
[1747767381442,3.2078,2448.1,2445.5,32.185]
[1747767381443,3.2078,2447.8,2447.5,8.1638]
[1747767381643,3.2078,2448.3,2446.8,0.00613021]
[1747767381855,3.2078,2448.0,2447.5,8.1638]
[1747767382046,0.00613021,2447.8,2447.5,0.00613021]
[1747767382451,0.00613021,2447.8,2447.7,8.1638]
[1747767382749,3.21393021,2447.8,2447.5,0.00613021]
[1747767382955,5.25670521,2447.8,2447.5,0.00613021]
[1747767383159,3.21393021,2447.8,2447.5,0.00613021]
[1747767383453,5.25670521,2447.8,2447.5,0.00613021]
[1747767383657,0.00613021,2447.8,2447.7,8.1638]
[1747767384152,3.21393021,2447.8,2447.5,0.00613021]
[1747767384451,3.21393021,2447.8,2447.7,8.1638]
[1747767384649,2.04890521,2447.8,2447.5,0.00613021]
[1747767384850,3.21393021,2447.8,2447.6,8.1638]
[1747767385057,3.21393021,2447.8,2447.5,0.00613021]
[1747767385258,3.21393021,2447.8,2447.6,6.86196143]
[1747767385756,5.25666521,2447.8,2447.5,0.00613021]
[1747767386055,5.25666521,2447.8,2447.7,0.02130992]
[1747767386249,5.25666521,2447.8,2447.4,6.86196143]
[1747767386250,0.07105136,2447.6,2447.4,6.86196143]
[1747767386445,3.2078,2447.5,2446.5,36.4698]
[1747767386654,3.2078,2447.2,2447.1,6.86196143]
[1747767386952,3.2078,2447.2,2446.9,6.86196143]
[1747767387355,2.30603,2447.2,2447.1,7.67900143]
[1747767387658,1.36e-06,2447.6,2447.5,5.3350717]
[1747767387853,1.36e-06,2447.6,2447.5,41.8228717]
[1747767388049,0.00613021,2447.8,2447.7,0.81684]
[1747767388245,0.00613021,2447.8,2447.7,5.33500034]
[1747767388449,2.1e-07,2447.8,2447.7,10.33500034]
[1747767388652,2.1e-07,2447.8,2447.7,7.20963134]
[1747767388853,2.1e-07,2447.8,2447.7,11.23427134]
[1747767389151,2.1e-07,2447.8,2447.7,8.02647134]
[1747767389349,2.1e-07,2447.8,2447.7,2.20963134]
[1747767389952,2.1e-07,2447.8,2447.7,3.02647134]
[1747767390154,2.04269021,2447.8,2447.6,0.0736]
[1747767390354,0.81684,2447.7,2447.6,0.0736]
[1747767390758,0.81684,2447.7,2446.9,1.4114]
[1747767390759,2.042775,2447.7,2446.9,4.6192]
[1747767391059,2.1e-07,2447.8,2447.7,0.81684]
[1747767391257,2.1e-07,2447.8,2447.7,9.43787134]
[1747767391955,2.1e-07,2447.8,2447.7,4.43787134]
[1747767392253,2.1e-07,2447.8,2447.7,3.02647134]
[1747767394158,2.04269021,2447.8,2446.9,2.04277]
[1747767394464,3.2078,2447.6,2447.4,2.20963134]
[1747767394760,3.2078,2447.5,2447.4,2.20963134]
[1747767394960,3.2078,2447.5,2447.3,0.81696]
[1747767394961,0.81697,2447.4,2446.9,1.4356]
[1747767395150,3.2078,2447.2,2446.9,1.4356]
[1747767395350,0.81711,2446.9,2446.8,9.95e-06]
[1747767395563,3.2078,2446.9,2446.8,9.95e-06]
[1747767395757,3.2078,2447.5,2446.9,2.04278]
[1747767395969,3.2078,2447.5,2447.4,3.02657134]
[1747767396261,3.2078,2447.5,2446.8,9.95e-06]
[1747767396262,3.2078,2447.5,2446.9,4.56]
[1747767396463,3.2078,2447.5,2447.3,2.20963134]
[1747767396765,3.2078,2447.5,2447.4,0.81694]
[1747767396966,0.81698,2447.3,2447.1,1.3522]
[1747767397159,3.2078,2447.2,2447.1,0.81704]
[1747767397465,3.2078,2447.2,2447.1,3.02667134]
[1747767397761,3.2078,2447.2,2447.1,2.20963134]
[1747767397966,6.068025,2447.2,2446.9,0.81709]
[1747767398157,6.068025,2447.2,2446.8,9.95e-06]
[1747767398158,0.81706,2447.1,2446.8,0.81713995]
[1747767398465,3.2078,2446.9,2446.8,0.81713995]
[1747767398961,3.2078,2447.2,2447.1,0.81704]
[1747767399158,3.2078,2447.2,2447.1,3.02667134]
[1747767399350,4.02471,2447.6,2447.1,2.20963134]
[1747767399550,3.2078,2447.4,2446.9,1.4039]
[1747767399753,3.2078,2447.1,2447.0,0.81708]
[1747767399964,3.2078,2447.1,2446.8,9.95e-06]
[1747767400163,3.2078,2447.1,2446.9,0.81709]
[1747767400460,3.2078,2447.1,2446.9,3.02672134]
[1747767400661,3.2078,2447.1,2447.0,2.20963134]
[1747767400863,0.81711,2446.9,2446.8,9.95e-06]
[1747767401053,40.5688,2447.1,2445.2,37.61296]
[1747767401259,3.2078,2445.8,2445.2,1.3307]
[1747767401458,3.2078,2445.3,2445.0,2.01153]
[1747767401667,3.2156,2445.3,2445.2,0.81768]
[1747767401860,0.0078,2445.3,2444.7,2.04458]
[1747767402057,0.0078,2445.3,2445.2,0.81768]
[1747767402265,3.21393021,2445.5,2445.4,0.81761]
[1747767402463,3.21393021,2445.5,2444.8,1.33683]
[1747767402660,3.21393021,2445.5,2444.9,0.81778]
[1747767402963,0.01393021,2445.5,2445.4,0.81761]
[1747767403163,3.22173021,2445.5,2445.3,0.81763]
[1747767403475,3.22173021,2445.5,2444.8,1.33683]
[1747767403476,5.26655522,2445.5,2444.8,1.33683]
[1747767403665,3.2078,2445.2,2444.8,1.33683]
[1747767403860,3.2078,2444.9,2444.8,1.33683]
[1747767404167,3.2078,2445.2,2445.1,0.81771]
[1747767404865,3.22173021,2445.5,2445.4,0.81761]
[1747767405168,0.00613021,2445.5,2445.4,0.81761]
[1747767405463,6.07614521,2445.5,2444.8,2.05062]
[1747767405763,6.07639521,2445.5,2445.2,0.81766]
[1747767405961,1.3187,2445.4,2445.3,0.81764]
[1747767406156,3.22173021,2445.5,2445.1,2.04429]
[1747767406458,3.2078,2445.3,2444.8,0.00613]
[1747767406659,3.2078,2445.3,2444.8,1.43153]
[1747767406867,5.25275,2445.3,2445.2,0.81768]
[1747767407467,0.01393021,2445.5,2445.4,0.81761]
[1747767407769,3.2078,2445.9,2445.8,0.81748]
[1747767408171,5.48742237,2446.6,2445.9,2.04362]
[1747767408469,0.81726,2446.5,2446.3,0.8173]
[1747767408671,7.54533758,2446.6,2446.3,0.8173]
[1747767408864,7.54533758,2446.6,2446.2,0.00613021]
[1747767409071,4.02511,2446.3,2446.2,0.00613021]
[1747767409270,3.2078,2446.3,2446.2,0.82347021]
[1747767409466,5.251745,2446.3,2446.2,0.82347021]
[1747767410269,5.251745,2446.3,2446.2,0.00613021]
[1747767410572,5.251745,2446.3,2446.2,0.82347021]
[1747767410971,5.251745,2446.3,2446.2,0.00613021]
[1747767411170,3.2078,2446.3,2446.2,2.86741521]
[1747767411374,3.2078,2446.3,2445.5,3.2078]
[1747767411667,3.2078,2446.3,2445.9,2.04359]
[1747767411977,3.2078,2446.3,2446.2,0.81734]
[1747767412568,5.251745,2446.3,2446.0,0.00613]
[1747767412775,3.2078,2446.3,2446.2,0.81734]
[1747767413074,3.22173021,2446.6,2446.1,2.04343]
[1747767413273,2.043945,2446.4,2446.3,0.81731]
[1747767413670,3.22173021,2446.6,2446.3,2.04386]
[1747767413870,2.043945,2446.4,2446.0,0.00613]
[1747767414170,3.2078,2446.1,2446.0,0.82354]
[1747767414362,3.2078,2446.1,2446.0,0.81741]
[1747767414562,5.251745,2446.1,2445.7,1.3442]
[1747767414766,2.043945,2446.0,2445.9,0.81744]
[1747767414969,2.043945,2445.9,2445.8,0.81746]
[1747767415264,2.043945,2445.9,2445.5,3.38808]
[1747767415265,2.043945,2445.7,2445.6,0.81754]
[1747767415462,3.2078,2446.0,2445.9,0.81744]
[1747767415778,2.043945,2445.9,2445.8,0.81745]
[1747767415968,3.2078,2446.0,2445.0,26.11433521]
[1747767416276,2.043945,2445.9,2445.7,0.81751]
[1747767416574,3.2078,2446.3,2446.2,0.81734]
[1747767417074,3.2078,2446.3,2446.2,2.861285]
[1747767417276,3.2078,2446.3,2446.2,7.861285]
[1747767417473,0.01393021,2446.6,2446.5,0.81724]
[1747767417674,0.00613021,2446.6,2446.5,0.81724]
[1747767417975,0.00613021,2446.6,2446.5,2.860935]
[1747767418174,2.05007521,2446.6,2446.3,0.81729]
[1747767418377,5.251745,2446.4,2446.3,0.81731]
[1747767418765,3.2078,2446.4,2446.3,2.86117]
[1747767418970,5.251745,2446.4,2446.3,2.04386]
[1747767419171,5.251745,2446.4,2446.3,1.03757571]
[1747767419372,6.069025,2446.4,2446.3,0.22026571]
[1747767419569,5.251745,2446.4,2445.8,2.04368]
[1747767419775,7.07533929,2446.0,2445.9,0.81744]
[1747767420280,3.2078,2446.4,2446.1,2.04343]
[1747767420481,0.01393021,2446.6,2446.5,0.81724]
[1747767420976,0.01393021,2446.6,2446.5,7.860935]
[1747767421170,3.2078,2447.0,2446.9,0.81711]
[1747767421569,3.2078,2447.0,2446.9,2.86047]
[1747767422171,3.2078,2447.0,2446.9,7.86047]
[1747767422374,7.07533929,2447.0,2446.9,2.04336]
[1747767422577,7.07533929,2447.0,2446.7,0.00613021]
[1747767422778,3.2078,2447.0,2446.9,0.81711]
[1747767423078,3.86753929,2446.8,2446.7,0.82331021]
[1747767423278,3.86753929,2446.8,2446.7,0.00613021]
[1747767423472,4.68467929,2446.8,2446.7,0.00613021]
[1747767423966,2.04295,2446.7,2446.2,0.81731]
[1747767424271,7.07533929,2446.3,2445.2,2.04419]
[1747767424477,3.2078,2446.4,2446.3,0.81731]
[1747767424876,2.68907714,2446.6,2446.5,0.81724]
[1747767425282,2.68907714,2446.6,2446.5,2.860935]
[1747767425775,5.01692869,2446.6,2446.0,2.04346]
[1747767425971,4.6403,2446.5,2446.4,0.81728]
[1747767426473,1.4325,2446.5,2446.4,2.86106]
[1747767426777,8.50783929,2446.5,2446.4,0.81728]
[1747767426975,9.65722869,2446.5,2446.4,2.86106]
[1747767427173,9.65722869,2446.5,2446.2,0.81732]
[1747767427380,3.86753929,2446.3,2446.2,0.81731]
[1747767427777,6.89458588,2446.5,2446.3,0.81731]
[1747767427980,3.86753929,2446.3,2446.0,2.04353]
[1747767428278,3.86753929,2446.3,2446.2,0.81734]
[1747767428579,6.89458588,2446.5,2446.4,0.81728]
[1747767428775,3.86753929,2446.3,2446.2,0.81734]
[1747767429167,5.74519648,2446.5,2446.4,0.81728]
[1747767429572,9.61273577,2446.5,2446.4,0.81728]
[1747767429781,1.10489648,2446.5,2446.4,2.86106]
[1747767430477,1.10489648,2446.5,2446.3,0.81729]
[1747767430478,8.99747577,2446.5,2446.3,0.81729]
[1747767430682,5.27393929,2446.4,2446.3,0.81729]
[1747767431085,1.4064,2446.4,2446.3,2.86115]
[1747767431876,6.09121929,2446.4,2446.3,2.04386]
[1747767432076,5.27393929,2446.4,2445.7,32.12784]
[1747767432282,7.07533929,2446.2,2446.1,0.81738]
[1747767432471,3.2078,2446.2,2446.1,0.81738]
[1747767432678,7.07533929,2446.2,2446.1,2.86141]
[1747767433185,7.07533929,2446.2,2446.1,0.81738]
[1747767433379,1.4064,2446.4,2446.3,0.81731]
[1747767433584,0.64645662,2446.6,2446.5,0.81724]
[1747767433783,1.95375662,2446.6,2446.5,0.81724]
[1747767434282,5.82129591,2446.6,2446.0,2.04348]
[1747767434485,3.2078,2446.2,2446.0,2.04348]
[1747767434677,3.2078,2446.2,2446.1,0.81738]
[1747767435075,7.07533929,2446.2,2445.6,5.6843]
[1747767435287,3.86753929,2445.7,2445.6,0.81754]
[1747767435481,3.86753929,2445.7,2445.0,28.749]
[1747767435680,3.2078,2445.5,2445.4,0.81761]
[1747767435883,3.8736695,2445.9,2445.7,0.81749]
[1747767436183,0.00613021,2445.9,2445.8,0.81748]
[1747767436791,3.8736695,2445.9,2445.4,1.3813]
[1747767436978,3.86753929,2445.6,2444.8,3.2078]
[1747767437289,3.2078,2445.4,2445.3,0.81764]
[1747767437682,7.07533929,2445.4,2445.3,0.81764]
[1747767437891,3.21393021,2445.9,2445.8,0.81748]
[1747767438192,0.00613021,2445.9,2445.8,0.81748]
[1747767439385,3.8736695,2445.9,2445.8,0.81748]
[1747767439579,0.00613021,2445.9,2445.8,28.69248]
[1747767439783,3.2078,2446.5,2446.4,0.81728]
[1747767439979,2.18614436,2446.8,2446.7,0.81718]
[1747767440185,2.13583639,2447.0,2446.9,0.81711]
[1747767440390,4.27947154,2447.3,2447.2,0.81701]
[1747767440885,4.88117162,2447.3,2447.2,0.81701]
[1747767441097,4.50446233,2447.3,2447.2,0.81701]
[1747767441393,4.88117162,2447.3,2447.2,0.81701]
[1747767441600,4.50446233,2447.3,2447.2,0.81701]
[1747767441892,4.88117162,2447.3,2447.0,0.00613021]
[1747767442094,4.50446233,2447.3,2447.2,0.81701]
[1747767442594,1.29666233,2447.3,2447.2,0.81701]
[1747767443294,1.29666233,2447.3,2447.2,28.68801]
[1747767443500,0.00613021,2447.5,2447.4,0.81694]
[1747767443794,0.3828395,2447.5,2447.4,0.81694]
[1747767444495,0.00613021,2447.5,2447.4,28.68394]
[1747767444694,0.3828395,2447.5,2447.4,28.68394]
[1747767445089,0.00613021,2447.5,2447.4,28.68394]
[1747767445292,0.00613021,2447.5,2447.4,33.68394]
[1747767445600,0.3828395,2447.5,2447.4,27.81094]
[1747767445898,0.3828395,2447.5,2447.4,32.81094]
[1747767446095,0.00613021,2447.5,2447.4,32.81094]
[1747767446898,0.3828395,2447.5,2447.4,32.81094]
[1747767447206,0.00613021,2447.5,2447.4,27.81094]
[1747767447696,3.2078,2447.9,2447.8,0.81681]
[1747767447899,3.2078,2448.3,2448.2,0.81667]
[1747767448199,0.64830897,2448.4,2448.3,0.81664]
[1747767448702,1.02501826,2448.4,2448.3,0.81664]
[1747767449202,0.81671,2448.2,2447.6,2.04218]
[1747767449397,3.58450929,2447.8,2447.5,26.991]
[1747767449593,3.2078,2447.8,2447.5,26.991]
[1747767449904,3.2078,2448.2,2448.1,0.81671]
[1747767450404,3.58450929,2448.2,2448.1,0.81671]
[1747767451106,3.58450929,2448.2,2447.8,2.042]
[1747767451307,3.2078,2448.2,2448.1,0.81671]
[1747767451505,0.00613021,2448.6,2448.2,2.04168]
[1747767451800,0.00613021,2448.6,2448.5,0.81657]
[1747767452000,2.1e-07,2448.6,2448.5,0.81657]
[1747767452201,8.97e-06,2448.8,2448.7,0.81651]
[1747767452396,6.36e-06,2449.1,2449.0,0.81641]
[1747767452699,0.34635869,2449.3,2449.2,0.81634]
[1747767452905,0.34635869,2449.3,2449.0,34.278345]
[1747767453207,0.34635869,2449.3,2449.2,0.81634]
[1747767453603,0.34635869,2449.3,2449.2,2.85778]
[1747767453801,0.34635869,2449.3,2448.6,1.2095]
[1747767454002,3.2078,2449.0,2448.8,0.81646]
[1747767454403,3.2078,2449.0,2448.5,26.137]
[1747767454604,3.2078,2448.6,2448.5,26.95357]
[1747767454797,3.2078,2448.9,2448.7,0.81649]
[1747767455209,3.2078,2448.9,2448.7,2.858305]
[1747767455409,3.2078,2448.9,2448.7,0.81649]
[1747767455706,63.18834336,2448.8,2448.7,7.858305]
[1747767455907,63.18834336,2448.8,2448.7,26.95349]
[1747767456204,63.18834336,2448.8,2448.7,33.99535]
[1747767456411,63.18834336,2448.8,2448.7,32.20315]
[1747767457604,63.18834336,2448.8,2448.7,6.06615]
[1747767457813,63.18834336,2448.8,2448.7,28.99235]
[1747767458206,66.39614336,2448.8,2448.7,2.04186]
[1747767458403,66.39614336,2448.8,2448.7,2.85837]
[1747767458604,63.18834336,2448.8,2448.7,2.85837]
[1747767459102,62.27967336,2448.8,2448.7,2.85837]
[1747767460107,65.48747336,2448.8,2448.6,0.81653]
[1747767460611,65.48747336,2448.8,2448.3,0.00613021]
[1747767460612,70.48747336,2448.8,2448.3,0.00613021]
[1747767460811,3.2078,2448.4,2448.3,0.82277021]
[1747767462312,3.2078,2448.4,2448.3,0.00613021]
[1747767462504,3.2078,2448.4,2448.3,0.82277021]
[1747767462700,3.2078,2448.4,2448.3,0.00613021]
[1747767463209,3.2078,2448.4,2448.3,0.82277021]
[1747767463412,3.2078,2448.4,2448.3,0.00613021]
[1747767463605,3.2078,2448.4,2448.3,0.82277021]
[1747767463817,3.2078,2448.4,2448.3,2.86496021]
[1747767464609,62.27967336,2448.8,2448.7,0.81651]
[1747767464811,62.27967336,2448.8,2448.7,26.07251]
[1747767465012,62.27967336,2448.8,2448.7,28.11437]
[1747767467211,62.27967336,2448.8,2448.7,33.11437]
[1747767467914,59.53824336,2448.8,2448.7,32.6297083]
[1747767468110,55.97279336,2448.8,2448.7,32.6297083]
[1747767468415,52.20010336,2448.8,2448.7,32.6297083]
[1747767468917,48.04801336,2448.8,2448.7,32.6297083]
[1747767469114,44.01581336,2448.8,2448.7,32.6297083]
[1747767469322,42.07191336,2448.8,2448.7,32.6297083]
[1747767469513,40.85516336,2448.8,2448.7,32.6297083]
[1747767469713,40.85516336,2448.8,2448.7,7.85837]
[1747767470017,39.11795336,2448.8,2448.7,7.85837]
[1747767470212,39.11795336,2448.8,2448.7,46.89237]
[1747767470609,37.08309336,2448.8,2448.7,46.89237]
[1747767470810,37.08309336,2448.8,2448.7,7.85837]
[1747767471009,34.98273336,2448.8,2448.7,46.88937]
[1747767471214,32.62600336,2448.8,2448.7,46.88937]
[1747767471425,30.98175336,2448.8,2448.7,46.88937]
[1747767472021,28.18334336,2448.8,2448.7,46.88937]
[1747767472236,25.95203336,2448.8,2448.7,46.88937]
[1747767472520,25.95203336,2448.8,2448.7,2.85837]
[1747767472723,24.86908336,2448.8,2448.7,2.85837]
[1747767474721,24.86908336,2448.8,2448.7,41.05837]
[1747767475117,24.86908336,2448.8,2448.7,2.85837]
[1747767476224,22.95747336,2448.8,2448.7,2.85837]
[1747767476520,20.53327336,2448.8,2448.7,2.85837]
[1747767476719,19.46387336,2448.8,2448.7,7.85837]
[1747767477023,17.28354336,2448.8,2448.7,7.85837]
[1747767477224,16.44611336,2448.8,2448.7,7.85837]
[1747767477423,15.61953336,2448.8,2448.7,7.85837]
[1747767477620,14.66192336,2448.8,2448.7,7.85837]
[1747767477926,11.95503336,2448.8,2448.7,7.85837]
[1747767478118,10.56243336,2448.8,2448.7,7.85837]
[1747767478313,8.79089589,2448.8,2448.7,7.85837]
[1747767478518,0.00613021,2449.4,2449.3,0.81631]
[1747767478721,0.00613021,2449.4,2449.3,42.22211]
[1747767479018,0.00613021,2449.4,2449.3,44.26347]
[1747767479322,0.00613021,2449.4,2449.1,0.81636]
[1747767479623,3.21393021,2449.4,2449.2,0.81633]
[1747767479826,1.307,2449.3,2449.2,0.81633]
[1747767480416,0.81638,2449.1,2448.5,2.0414]
[1747767480618,3.2078,2448.9,2448.3,2.73443302]
[1747767480817,3.2078,2448.6,2448.5,0.81657]
[1747767481414,3.2078,2448.6,2448.5,2.85859499]
[1747767481616,1.307,2448.8,2448.7,0.81651]
[1747767482016,6.307,2448.8,2448.4,24.417]
[1747767482217,3.2078,2448.6,2448.5,0.81654]
[1747767482722,3.2078,2448.6,2448.4,24.417]
[1747767482921,1.4327,2448.5,2448.4,24.417]
[1747767483721,6.4327,2448.5,2447.7,0.81682]
[1747767483919,0.81677,2448.0,2447.3,23.589]
[1747767484227,3.2078,2447.8,2447.7,0.81682]
[1747767484423,1.4327,2447.9,2447.8,0.81681]
[1747767484617,3.2078,2448.2,2447.4,2.042775]
[1747767484822,1.1902,2448.4,2447.8,2.04203]
[1747767485020,1.1902,2448.4,2448.1,0.81669]
[1747767485021,0.00613021,2448.3,2448.1,0.81669]
[1747767485525,0.00613021,2448.3,2447.6,3.21393021]
[1747767485526,3.2078,2448.2,2447.6,3.21393021]
[1747767485823,3.2078,2447.9,2447.6,0.00613021]
[1747767486029,0.81684,2447.7,2447.6,0.00613021]
[1747767486527,5.81684,2447.7,2447.6,0.00613021]
[1747767487838,5.81684,2447.7,2446.9,23.591]
[1747767487839,5.0,2447.7,2446.9,23.591]
[1747767488120,3.2078,2447.4,2447.3,0.81696]
[1747767488716,3.2078,2447.4,2447.3,24.40796]
[1747767488917,3.2078,2447.4,2447.3,26.450985]
[1747767489128,3.2078,2447.8,2447.4,0.81694]
[1747767489324,3.2078,2447.8,2447.7,0.81684]
[1747767489518,1.1281,2448.1,2448.0,0.81674]
[1747767489519,4.3359,2448.1,2448.0,0.81674]
[1747767490219,4.3359,2448.1,2447.8,24.4118]
[1747767490423,4.3359,2448.1,2447.8,23.595]
[1747767490621,9.3359,2448.1,2447.1,0.00613021]
[1747767490814,3.2078,2447.8,2447.4,3.2078]
[1747767491017,4.3359,2448.1,2447.1,0.00613021]
[1747767491413,4.3359,2448.1,2447.2,2.04251]
[1747767491625,4.3359,2448.1,2447.8,0.81679]
[1747767492222,4.3359,2448.1,2447.6,23.595]
[1747767492426,3.2078,2447.8,2447.6,23.595]
[1747767492725,4.3359,2448.1,2447.6,23.595]
[1747767493031,4.3359,2448.1,2447.6,24.41186]
[1747767493922,3.2078,2448.1,2447.9,0.81675]
[1747767494324,3.2078,2448.1,2448.0,0.81674]
[1747767494723,3.2078,2448.1,2448.0,2.04244]
[1747767495019,0.81676,2448.0,2447.6,23.595]
[1747767495226,0.81679,2447.9,2447.4,0.81692]
[1747767495526,3.2078,2447.8,2447.5,23.59891]
[1747767495725,1.2167,2448.1,2447.5,23.59891]
[1747767495726,4.4245,2448.1,2447.5,22.782]
[1747767495921,4.4245,2448.1,2447.8,0.81679]
[1747767496329,4.4245,2448.1,2447.7,0.81683]
[1747767496627,4.4245,2448.1,2447.6,1.3223]
[1747767496821,4.4245,2448.1,2447.5,22.782]
[1747767497020,0.81678,2447.9,2447.5,22.782]
[1747767497241,3.2078,2447.8,2447.5,22.782]
[1747767497623,3.2078,2447.8,2447.5,23.59889]
[1747767497818,3.2078,2447.8,2447.5,22.782]
[1747767499328,3.2078,2447.8,2447.7,0.81684]
[1747767500233,3.2078,2447.8,2447.6,0.81687]
[1747767500528,3.2078,2447.8,2447.2,2.04252]
[1747767500529,3.2078,2447.8,2447.0,25.9908]
[1747767500728,3.2078,2447.5,2447.1,0.82315021]
[1747767500935,3.2078,2447.2,2447.1,0.82315021]
[1747767501125,3.2078,2447.2,2447.1,0.82317021]
[1747767502634,3.2078,2447.2,2447.1,2.86636521]
[1747767503226,3.2078,2447.2,2447.1,0.82317021]
[1747767503435,3.2078,2447.2,2447.1,0.00613021]
[1747767503633,0.00613021,2448.3,2447.4,0.81694]
[1747767503833,0.00613021,2448.3,2448.1,0.81671]
[1747767504026,0.00613021,2448.3,2448.1,23.60271]
[1747767504229,0.00613021,2448.3,2448.1,2.85907]
[1747767505035,0.00613021,2448.3,2448.1,0.81671]
[1747767505332,0.00613021,2448.3,2447.9,3.2078]
[1747767505529,0.00613021,2448.3,2448.1,0.81671]
[1747767506225,0.00613021,2448.3,2448.2,0.81667]
[1747767506425,0.00613021,2448.3,2448.2,4.02447]
[1747767506624,0.00613021,2448.3,2448.2,6.066745]
[1747767507232,0.00613021,2448.3,2448.2,7.400445]
[1747767507438,0.00613021,2448.3,2448.2,6.066745]
[1747767507932,2.1e-07,2448.3,2448.2,6.066745]
[1747767508135,2.1e-07,2448.3,2448.2,7.400445]
[1747767508528,2.1e-07,2448.3,2448.2,12.400445]
[1747767508726,2.1e-07,2448.3,2448.2,12.51574525]
[1747767509124,2.1e-07,2448.3,2448.2,13.76414525]
[1747767511433,2.1e-07,2448.3,2448.2,8.648845]
[1747767511634,2.1e-07,2448.3,2448.2,6.066745]
[1747767512739,2.1e-07,2448.3,2448.2,7.402145]
[1747767513238,2.1e-07,2448.3,2448.2,29.376145]